Cogmind - Beta 12 @@@ ROGUE MODE // 2023.05.14 @ 16:58:17 Player: Mr Goldstein Result: Destroyed by Y-54 Guardian with Flak Gun Performance ------------- Evolutions (4) 2000 Regions Visited (9) 1800 Robots Destroyed (0) 0 Value Destroyed (0) 0 Prototype IDs (23) 460 Alien Tech Used (0) 0 Bonus (1925) 1925 TOTAL SCORE: 6185 Bonus ------- Pacifist 1125 Entered DSFs 500 Aligned with FarCom 300 Cogmind --------- Core Integrity 0/850 Matter 300/300 Energy 100/100 System Corruption 3% Temperature Cool (6) Movement Core (50) Location -6/Extension Parts ------- > --- POWER (1) -------- (None) > --- PROPULSION (2) --- (None) > --- UTILITY (10) ----- (None) > --- WEAPON (2) ------- (None) > --- INVENTORY (5) ---- Longsword +1 Peak State ------------ > --- POWER ------------ (None) > --- PROPULSION ------- (None) > --- UTILITY ---------- (None) > --- WEAPON ----------- Longsword +1 > --- INVENTORY -------- (None) [Rating: 8] Favorites ----------- Power None Propulsion None Utility None Weapon Longsword +1 Slashing Weapon Longsword +1 Build | -11 -10 -10 -10 -9 -8 -7 -7 -6 -6 ------- Run | Jun Mat Min Exi Min Mat Fac DSF Fac Ext Slots Evolved 8 | . . . . . 4 2 . 2 . Power . | . . . . . . . . . . Propulsion . | . . . . . . . . . . Utility 8 | . . . . . 4 2 . 2 . Weapon . | . . . . . . . . . . Parts Attached 1 | . . . 1 . . . . . . Power . | . . . . . . . . . . Engine . | . . . . . . . . . . Core . | . . . . . . . . . . Reactor . | . . . . . . . . . . Propulsion . | . . . . . . . . . . Treads . | . . . . . . . . . . Leg . | . . . . . . . . . . Wheel . | . . . . . . . . . . Hover . | . . . . . . . . . . Flight . | . . . . . . . . . . Utility . | . . . . . . . . . . Device . | . . . . . . . . . . Storage . | . . . . . . . . . . Processor . | . . . . . . . . . . Hackware . | . . . . . . . . . . Protection . | . . . . . . . . . . Artifact . | . . . . . . . . . . Weapon 1 | . . . 1 . . . . . . Energy Gun . | . . . . . . . . . . Energy Cannon . | . . . . . . . . . . Ballistic Gun . | . . . . . . . . . . Ballistic Cannon . | . . . . . . . . . . Launcher . | . . . . . . . . . . Special Weapon . | . . . . . . . . . . Impact Weapon . | . . . . . . . . . . Slashing Weapon 1 | . . . 1 . . . . . . Piercing Weapon . | . . . . . . . . . . Special Melee Weapon . | . . . . . . . . . . Unidentified Prototypes . | . . . . . . . . . . Parts Lost . | . . . . . . . . . . Power . | . . . . . . . . . . Propulsion . | . . . . . . . . . . Utility . | . . . . . . . . . . Weapon . | . . . . . . . . . . Highest Loss Streak . | . . . . . . . . . . To Critical Strikes . | . . . . . . . . . . Average Slot Usage (%) . | . . . . . . . . . . Naked Turns 399 | . 21 26 105 57 36 10 17 40 87 Heaviest Build . | . . . . . . . . . . Greatest Support 3 | 3 3 3 3 3 3 3 3 3 3 Greatest Overweight (x) . | . . . . . . . . . . Average Overweight (x) . | . . . . . . . . . . Largest Inventory Capacity 5 | 5 5 5 5 5 5 5 5 5 5 Average Capacity 5 | 5 5 5 5 5 5 5 5 5 5 Most Carried 1 | . . . 1 1 1 1 1 1 1 Average Carried . | . . . . 1 1 1 1 1 1 Final Capacity 5 | 5 5 5 5 5 5 5 5 5 5 Final Carried 1 | . . . 1 1 1 1 1 1 1 Class Distribution -------------------- 100% | Mutant Dominant Class ---------------- Mutant | -10/Materials Mutant | -10/Mines Mutant | -10/Exiles Mutant | -9/Mines Mutant | -8/Materials Mutant | -7/Factory Mutant | -7/DSF Mutant | -6/Factory Mutant | -6/Extension Resources | -11 -10 -10 -10 -9 -8 -7 -7 -6 -6 ----------- Run | Jun Mat Min Exi Min Mat Fac DSF Fac Ext Matter Collected 198 | 198 . . . . . . . . . Remotely . | . . . . . . . . . . Salvage Created . | . . . . . . . . . . Parts . | . . . . . . . . . . Haulers Intercepted . | . . . . . . . . . . Recyclers Shooed . | . . . . . . . . . . Parts Field Recycled . | . . . . . . . . . . Retrieved Matter . | . . . . . . . . . . Parts Self-Destructed . | . . . . . . . . . . Prevented . | . . . . . . . . . . Kills | -11 -10 -10 -10 -9 -8 -7 -7 -6 -6 ------- Run | Jun Mat Min Exi Min Mat Fac DSF Fac Ext Combat Hostiles Destroyed . | . . . . . . . . . . Classes Destroyed . | . . . . . . . . . . Best Kill Streak . | . . . . . . . . . . Combat Bots Only . | . . . . . . . . . . Max Kills in Single Turn . | . . . . . . . . . . Gunslinging . | . . . . . . . . . . Exploded . | . . . . . . . . . . Melee . | . . . . . . . . . . Uniques/NPCs Destroyed . | . . . . . . . . . . Combat | -11 -10 -10 -10 -9 -8 -7 -7 -6 -6 -------- Run | Jun Mat Min Exi Min Mat Fac DSF Fac Ext Damage Taken 1513 | . 110 2 . 12 191 . 344 58 796 Core 1513 | . 110 2 . 12 191 . 344 58 796 Absorbed by Shields . | . . . . . . . . . . Core Remaining (%) 66 | 100 . . . 50 65 . 50 . . Volleys Fired . | . . . . . . . . . . Largest . | . . . . . . . . . . Hottest . | . . . . . . . . . . Shots Fired . | . . . . . . . . . . Gun . | . . . . . . . . . . Cannon . | . . . . . . . . . . Launcher . | . . . . . . . . . . Special . | . . . . . . . . . . Kinetic . | . . . . . . . . . . Thermal . | . . . . . . . . . . Explosive . | . . . . . . . . . . Electromagnetic . | . . . . . . . . . . Robot Hit Streak . | . . . . . . . . . . Robot Miss Streak . | . . . . . . . . . . Penetration Max . | . . . . . . . . . . Secondary Targets . | . . . . . . . . . . Shots Hit Robots . | . . . . . . . . . . Core Hits 3 | . . 1 . 1 . . . . 1 Critical Kills . | . . . . . . . . . . Critical Parts Destroyed . | . . . . . . . . . . Critical Strikes . | . . . . . . . . . . Melee Attacks . | . . . . . . . . . . Impact . | . . . . . . . . . . Slashing . | . . . . . . . . . . Piercing . | . . . . . . . . . . Sneak Attacks . | . . . . . . . . . . Combat Hostiles . | . . . . . . . . . . Follow-up Attacks . | . . . . . . . . . . Damage Inflicted 68 | . . 5 . 27 8 . . . 28 Guns . | . . . . . . . . . . Cannons . | . . . . . . . . . . Explosions . | . . . . . . . . . . Melee . | . . . . . . . . . . Ramming 68 | . . 5 . 27 8 . . . 28 Kinetic . | . . . . . . . . . . Thermal . | . . . . . . . . . . Explosive . | . . . . . . . . . . Electromagnetic . | . . . . . . . . . . Impact . | . . . . . . . . . . Slashing . | . . . . . . . . . . Piercing . | . . . . . . . . . . Highest Corruption 3 | . . . . . . . . 1 3 Average Corruption 1 | . . . . . . . . 1 1 Corruption Purged . | . . . . . . . . . . Corruption Blocked . | . . . . . . . . . . Overload Shots . | . . . . . . . . . . Overflow Damage . | . . . . . . . . . . Projectiles . | . . . . . . . . . . Explosions . | . . . . . . . . . . Melee . | . . . . . . . . . . Knockbacks . | . . . . . . . . . . Impact . | . . . . . . . . . . Kinetic . | . . . . . . . . . . Secondary . | . . . . . . . . . . Self-Inflicted Damage 31 | . . 2 . 12 4 . . . 13 Shots . | . . . . . . . . . . Rammed 15 | 1 . 1 . 6 1 . . . 6 Targets Rammed 15 | 1 . 1 . 6 1 . . . 6 Kicked . | . . . . . . . . . . Crushed . | . . . . . . . . . . Highest Temperature . | . . . . . . . . . . Average Temperature . | . . . . . . . . . . Received Heat Transfer 326 | . 36 . . . 9 . 12 20 249 Siege Activations . | . . . . . . . . . . Robots Corrupted . | . . . . . . . . . . Combat Hostiles . | . . . . . . . . . . Parts Fried . | . . . . . . . . . . Impact Corruptions . | . . . . . . . . . . Robots Melted . | . . . . . . . . . . Combat Hostiles . | . . . . . . . . . . Parts Melted . | . . . . . . . . . . Heat Transferred . | . . . . . . . . . . Parts Sabotaged . | . . . . . . . . . . Parts Stolen . | . . . . . . . . . . Parts Stripped . | . . . . . . . . . . Power Chain Reactions . | . . . . . . . . . . Missiles Intercepted . | . . . . . . . . . . Alert | -11 -10 -10 -10 -9 -8 -7 -7 -6 -6 ------- Run | Jun Mat Min Exi Min Mat Fac DSF Fac Ext Peak Influence 72 | . 15 5 . 15 35 15 25 27 72 Initial 15 | . . 5 . . 5 15 10 12 12 Average 21 | . 2 5 . 13 20 15 20 22 41 Maximum Alert Level . | . . . . . . . . . . Low Security (%) 100 | 100 100 100 . 100 100 100 100 100 100 Level 1 . | . . . . . . . . . . Level 2 . | . . . . . . . . . . Level 3 . | . . . . . . . . . . Level 4 . | . . . . . . . . . . Level 5 . | . . . . . . . . . . High Security . | . . . . . . . . . . Max Security . | . . . . . . . . . . Squads Dispatched 4 | . . . . . . . 1 2 1 Investigation 2 | . . . . . . . . 1 1 Extermination . | . . . . . . . . . . Reinforcement 2 | . . . . . . . 1 1 . Assault . | . . . . . . . . . . Garrison . | . . . . . . . . . . Intercept . | . . . . . . . . . . Searches Triggered . | . . . . . . . . . . Construction Impeded . | . . . . . . . . . . Haulers Reinforced . | . . . . . . . . . . Active Scanning Responses . | . . . . . . . . . . Cargo Convoy Interrupts . | . . . . . . . . . . Stealth | -11 -10 -10 -10 -9 -8 -7 -7 -6 -6 --------- Run | Jun Mat Min Exi Min Mat Fac DSF Fac Ext Distress Signals 1 | . . . . . . . . 1 . Communications Jammed . | . . . . . . . . . . Distress Signals . | . . . . . . . . . . Times Spotted 39 | . 5 . . 2 7 . 5 5 15 Peak Tracking Total 14 | . 5 . . 2 7 . 6 5 14 Tactical Retreats 1 | . . . . . . . . 1 . Traps | -11 -10 -10 -10 -9 -8 -7 -7 -6 -6 ------- Run | Jun Mat Min Exi Min Mat Fac DSF Fac Ext Traps Triggered 1 | . . . . . . . . 1 . Indirectly . | . . . . . . . . . . Trap Hack Attempts . | . . . . . . . . . . Triggered . | . . . . . . . . . . Disarmed . | . . . . . . . . . . Reprogrammed . | . . . . . . . . . . Reused . | . . . . . . . . . . Traps Extracted . | . . . . . . . . . . Installed . | . . . . . . . . . . Triggered . | . . . . . . . . . . Machines | -11 -10 -10 -10 -9 -8 -7 -7 -6 -6 ---------- Run | Jun Mat Min Exi Min Mat Fac DSF Fac Ext Machines Disabled . | . . . . . . . . . . Max in Single Turn . | . . . . . . . . . . Machines Repaired . | . . . . . . . . . . Machines Sabotaged . | . . . . . . . . . . Overloaded Fab Kills . | . . . . . . . . . . Hacking | -11 -10 -10 -10 -9 -8 -7 -7 -6 -6 --------- Run | Jun Mat Min Exi Min Mat Fac DSF Fac Ext Machines Accessed 4 | . . . 1 . . 1 . 1 1 Terminals 3 | . . . . . . 1 . 1 1 Fabricators . | . . . . . . . . . . Repair Stations . | . . . . . . . . . . Recycling Units . | . . . . . . . . . . Scanalyzers . | . . . . . . . . . . Garrison Access . | . . . . . . . . . . Total Hacks 8 | . . . 1 . . 1 . 3 3 Successful 2 | . . . 1 . . 1 . . . Failed 6 | . . . . . . . . 3 3 Catastrophic 2 | . . . . . . . . . 2 Database Lockouts . | . . . . . . . . . . Manual 4 | . . . 1 . . . . 3 . Terminals 7 | . . . . . . 1 . 3 3 Fabricators . | . . . . . . . . . . Repair Stations . | . . . . . . . . . . Recycling Units . | . . . . . . . . . . Scanalyzers . | . . . . . . . . . . Garrison Access . | . . . . . . . . . . Terminal Hacks 2 | . . . 1 . . 1 . . . Open DSF 1 | . . . . . . 1 . . . EX-Prototype ID Bank 1 | . . . 1 . . . . . . Fabricator Hacks . | . . . . . . . . . . Repair Station Hacks . | . . . . . . . . . . Recycling Unit Hacks . | . . . . . . . . . . Scanalyzer . | . . . . . . . . . . Garrison Access Hacks . | . . . . . . . . . . Unauthorized Hacks . | . . . . . . . . . . Terminals . | . . . . . . . . . . Fabricators . | . . . . . . . . . . Repair Stations . | . . . . . . . . . . Recycling Units . | . . . . . . . . . . Scanalyzers . | . . . . . . . . . . Garrison Access . | . . . . . . . . . . Data Cores Recovered . | . . . . . . . . . . Used . | . . . . . . . . . . Hacking Detections 2 | . . . . . . . . 1 1 Full Trace Events 2 | . . . . . . . . 1 1 Feedback Events . | . . . . . . . . . . Feedback Blocked . | . . . . . . . . . . Robot Schematics Acquired . | . . . . . . . . . . Robots Built . | . . . . . . . . . . Authchips . | . . . . . . . . . . Time . | . . . . . . . . . . Total Robot Build Rating . | . . . . . . . . . . Part Schematics Acquired . | . . . . . . . . . . Parts Built . | . . . . . . . . . . Authchips . | . . . . . . . . . . Time . | . . . . . . . . . . Total Part Build Rating . | . . . . . . . . . . Parts Repaired . | . . . . . . . . . . Time . | . . . . . . . . . . Parts Recycled . | . . . . . . . . . . Recycled Matter . | . . . . . . . . . . Retrieved Matter . | . . . . . . . . . . Retrieved Components . | . . . . . . . . . . Parts Scanalyzed . | . . . . . . . . . . Part Schematics Acquired . | . . . . . . . . . . Parts Damaged . | . . . . . . . . . . Bothacking | -11 -10 -10 -10 -9 -8 -7 -7 -6 -6 ------------ Run | Jun Mat Min Exi Min Mat Fac DSF Fac Ext Used RIF Installer . | . . . . . . . . . . Robots Hacked . | . . . . . . . . . . Non-combat . | . . . . . . . . . . Combat . | . . . . . . . . . . Robot Hacks Applied . | . . . . . . . . . . Relay Couplers Released . | . . . . . . . . . . Fabnet Peak Effective % . | . . . . . . . . . . Robots Rewired . | . . . . . . . . . . Allies Hacked . | . . . . . . . . . . Hacks Repelled . | . . . . . . . . . . Allies | -11 -10 -10 -10 -9 -8 -7 -7 -6 -6 -------- Run | Jun Mat Min Exi Min Mat Fac DSF Fac Ext Total Allies . | . . . . . . . . . . Largest Group . | . . . . . . . . . . Highest-Rated Group . | . . . . . . . . . . Highest-Rated Ally . | . . . . . . . . . . Total Orders . | . . . . . . . . . . Ally Attacks . | . . . . . . . . . . Total Damage . | . . . . . . . . . . Kills . | . . . . . . . . . . Allies Corrupted . | . . . . . . . . . . Allies Melted . | . . . . . . . . . . Intel | -11 -10 -10 -10 -9 -8 -7 -7 -6 -6 ------- Run | Jun Mat Min Exi Min Mat Fac DSF Fac Ext Robot Analysis Total . | . . . . . . . . . . Derelict Logs Recovered . | . . . . . . . . . . Drone Launches . | . . . . . . . . . . Drone Recoveries . | . . . . . . . . . . Exploration | -11 -10 -10 -10 -9 -8 -7 -7 -6 -6 ------------- Run | Jun Mat Min Exi Min Mat Fac DSF Fac Ext Turns Passed 413 | 13 21 26 106 57 36 10 17 40 87 Spaces Moved 789 | 24 41 49 207 102 71 20 34 79 162 Core 789 | 24 41 49 207 102 71 20 34 79 162 Treads . | . . . . . . . . . . Legs . | . . . . . . . . . . Wheels . | . . . . . . . . . . Hover . | . . . . . . . . . . Flight . | . . . . . . . . . . Fastest Speed 50 | 50 50 50 50 50 50 50 50 50 50 Average Speed 50 | 50 50 50 50 50 50 50 50 50 50 Slowest Speed 50 | 50 50 50 50 50 50 50 50 50 50 Overloaded Moves . | . . . . . . . . . . Propulsion Burnouts . | . . . . . . . . . . Robots Hopped . | . . . . . . . . . . Cave-ins Triggered . | . . . . . . . . . . Exploration Rate (%) 20 | 3 16 10 60 29 11 1 34 4 40 Regions Visited 9 Branch Regions 4 Pre-discovered Areas . | . . . . . . . . . . Known Exits Taken 1 | . . . . . . 1 . . . Unknown Exits Taken 7 | 1 1 1 1 1 1 . . 1 . Scrap Searched . | . . . . . . . . . . Spaces Dug . | . . . . . . . . . . Terrain Destroyed . | . . . . . . . . . . Melee . | . . . . . . . . . . Projectile . | . . . . . . . . . . AOE . | . . . . . . . . . . Terrain Rammed . | . . . . . . . . . . Walls Destroyed . | . . . . . . . . . . Machines Disabled . | . . . . . . . . . . Actions | -11 -10 -10 -10 -9 -8 -7 -7 -6 -6 --------- Run | Jun Mat Min Exi Min Mat Fac DSF Fac Ext Total 797 | 24 40 49 208 107 71 19 33 78 168 Wait . | . . . . . . . . . . Move 781 | 23 40 48 206 101 71 19 33 78 162 Hop . | . . . . . . . . . . Pick Up . | . . . . . . . . . . Fast Attach 1 | . . . 1 . . . . . . Attach . | . . . . . . . . . . Detach 1 | . . . 1 . . . . . . Swap . | . . . . . . . . . . Drop . | . . . . . . . . . . Fire . | . . . . . . . . . . Melee . | . . . . . . . . . . Ram 14 | 1 . 1 . 6 . . . . 6 Kick . | . . . . . . . . . . Crush . | . . . . . . . . . . Escape Stasis . | . . . . . . . . . . Rewire . | . . . . . . . . . . Trap . | . . . . . . . . . . Miscellaneous . | . . . . . . . . . . Route ------- -11/Junkyard -10/Materials -10/Mines -10/Exiles (discovered 2 exits: [*Min x2]) -9/Mines -8/Materials -7/Factory -7/DSF -6/Factory -6/Extension History --------- Turn | Location | Event 5 | -11/Junkyard | Discovered new exit (range 12) 14 | -11/Junkyard | Entered Materials 31 | -10/Materials | Discovered new exit (range 8) 35 | -10/Materials | Entered Mines 58 | -10/Mines | Deemed a non-threat by the Exiles lab entrance 58 | -10/Mines | Discovered new exit (range 5) 61 | -10/Mines | Entered Exiles 69 | -10/Exiles | Discovered new exit (range 15) 75 | -10/Exiles | Met 8R-AWN 83 | -10/Exiles | Met EX-HEX 97 | -10/Exiles | Met EX-BIN 103 | -10/Exiles | Aligned with FarCom system 103 | -10/Exiles | Given EX-Vault access code 115 | -10/Exiles | Opened EX-Vault 118 | -10/Exiles | Found Longsword +1 130 | -10/Exiles | Warned to stay clear of 0b10 Research branches 144 | -10/Exiles | Met EX-DEC 162 | -10/Exiles | Discovered new exit (range 10) 167 | -10/Exiles | Left Exiles lab with Longsword +1 167 | -10/Exiles | Entered Mines 170 | -9/Mines | Joined a pair of Derelicts in attacking an 0b10 outpost 221 | -9/Mines | Discovered new exit (range 7) 224 | -9/Mines | Entered Materials 224 | -8/Materials | Evolved 4 slots: Utility x4 253 | -8/Materials | Discovered new exit (range 16) 260 | -8/Materials | Entered Factory 260 | -7/Factory | Evolved 2 slots: Utility x2 270 | -7/Factory | Identified exit to DSF 270 | -7/Factory | Entered DSF 282 | -7/DSF | Discovered new exit (range 11) 284 | -7/DSF | Additional patrols routed to DSF 287 | -7/DSF | Entered Factory 287 | -6/Factory | Evolved 2 slots: Utility x2 306 | -6/Factory | Assembled infested ambush trap array 311 | -6/Factory | Build established: Mutant 319 | -6/Factory | Discovered new exit (range 16) 327 | -6/Factory | Entered Extension 401 | -6/Extension | Core integrity fell below 50% 401 | -6/Extension | Spotted B-75 Beast 405 | -6/Extension | Spotted B-75 Beast 409 | -6/Extension | Core integrity fell below 20% 414 | -6/Extension | Destroyed by Y-54 Guardian with Flak Gun Last Messages --------------- 00320_ K-01 Serf destroyed. 00320_ K-01 Serf latches onto G-50 Soldier. 00320_ K-01 Serf pushes G-50 Soldier. LOCATION=UNKNOWN GOAL=ESCAPE 00327_ Receiving FarCom transmissions... 00358_ Slammed into Y-54 Guardian. 00376_ Connecting with Door Terminal... 00376_ Current location identified: Extension 00376_ ALERT: Suspicious activity at Terminal E005. Dispatching Investigation squad. 00396_ C-30 ARC bursts open, deploying its payload. 00396_ G-67 Veteran unfolds itself. 00396_ G-50 Soldier unfolds itself. 00401_ Slammed into G-50 Soldier. 00405_ Slammed into Y-54 Guardian. 00406_ Slammed into R-10 Processor. 00406_ Destabilizing: System corrupted (+2). 00409_ Machine disabled. 00414_ Slammed into Y-54 Guardian. Map ----- +----------------------------------------------------+ | ?????????????????????????????????????????????????? | | ?????????????????????????????????????????????????? | | #############????????????????????????????????????? | | #????????????????????????????????????? | | #????????????????????????????????????? | | #????????????????????????????????????? | | ##### #????????????????????????????????????? | | ????#/##+## #????????????????????????????????????? | | ???# ?? # #????????????????????????????????????? | | ???#[ ]? # ####?????????????????????????????????? | | ???# ??/ #????????? ???????????????????????? | | ???# ?# #????????? ???????????????????????? | | ???# # #????????? ???????????????????????? | | ???# = # #????????? ???????????????????????? | | ???#####/## #????????? ???????????????????????? | | ???????# #????????? ???????????????????????? | | ???????# #????????? ???????????????????????? | | ???????# #????????# #??????????????????????? | | ???????# Y #????????# #??????????????????????? | | ???????# #????????# #??????????????????????? | | ???????# Y #????????# #??????????????????????? | | ???????# #????????# #??????????????????????? | | ???????# #????????#u#??????????????????????? | | ???????# #????????# +??????????????????????? | | ???????# #????????#Y#??????????????????????? | | ???????# "#????????#@#??????????????????????? | | ???????#######%#????????# #??????????????????????? | | ?????????????#g#????????# #??????????????????????? | | ?????????????# #????????# #??????????????????????? | | ?????????????#g#?######?# #??????????????????????? | | ???????????### ### ##%##; ###????????????????????? | | ???????????#"" "" Y "#????????????????????? | | ???????????# "g" " #????????????????????? | | ???????????# g Y #????????????????????? | | ???????????# #????????????????????? | | ???????????# #????????????????????? | | ????????? ??????????????????? | | ??????? ????????????????? | | ?????? ???????????????? | | ????? BB ???????????????? | | ???? BB ??????????????? | | ???######### BB ########?????????????? | | ???????????# BB #????????????????????? | | ???????????# #????????????????????? | | ???????????# #????????????????????? | | ???????????# #????????????????????? | | ???????????######T#"""######?????????????????????? | | ?????????????????#???????????????????????????????? | | ?????????????????????????????????????????????????? | | | +----------------------------------------------------+ Best States ------------- Heat Dissipation 37 Energy Generation 5 Energy Capacity 100 Matter Stores 300 Matter Capacity 300 Sight Range 16 Terrain Scan Density 10 Evasion (%) 50 Item Schematics ----------------- None Robot Schematics ------------------ None Fabricated ------------ Nothing Alien Tech Used ----------------- None Achievements -------------- None Challenges ------------ None Game ------ Seed SwordNeutronStabilizer Manual? 0 Play Time 00:05:44 Cumulative 208.9 hours Start 2023.05.14 @ 16:53:28 End 2023.05.14 @ 16:58:17 Sessions 1 Manual Loads 0 Difficulty Rogue Special Mode None Game No. 602 Rogue 602 Adventurer 0 Explorer 0 Win Type - Total 9 Types 7/0/1/1/0/0/0/0/0 Lore% 81 Gallery% 80 Achievement% 71 Wizard Run 0 Options --------- ASCII 0 Keyboard 0 Movement Numpad Keybinds 0 Fullscreen 1 Font 16/SmallcapsGlow Map View 75x55 Tactical HUD 1 Map Filters NONE Filters NONE Steam 1 RUN: 0d3d5e7e-6e4e-44bc-b25e-f1b2b8a365fe